[Event "Titled Tuesday Blitz April 12 Early 2022"]
[White "Sadilek, Peter"]
[Black "Decuigniere, Tom"]
[WhiteFideId "1616439"]
[BlackFideId "26093820"]
[WhiteElo "2145"]
[BlackElo "1997"]
[Result "1/2-1/2"]
[Round "02"]
[TimeControl "180+1"]
[Date "2022.04.13"]
[WhiteClock "0:00:31"]
[BlackClock "0:01:16"]

1. Nf3 {[%clk 0:02:59]}  c5 {[%clk 0:02:59]} 2. c4 {[%clk 0:02:58]}  g6 {[%clk 0:03:00]} 3. d4 {[%clk 0:02:56]}  cxd4 {[%clk 0:03:00]} 4. Nxd4 {[%clk 0:02:55]}  Nc6 {[%clk 0:03:00]} 5. e4 {[%clk 0:02:54]}  Bg7 {[%clk 0:03:01]} 6. Be3 {[%clk 0:02:54]}  Nf6 {[%clk 0:03:01]} 7. Nc3 {[%clk 0:02:55]}  O-O {[%clk 0:03:01]} 8. Be2 {[%clk 0:02:55]}  d6 {[%clk 0:03:02]} 9. O-O {[%clk 0:02:56]}  Bd7 {[%clk 0:03:02]} 10. h3 {[%clk 0:02:56]}  Nxd4 {[%clk 0:03:03]} 11. Bxd4 {[%clk 0:02:57]}  Bc6 {[%clk 0:03:03]} 12. Qc2 {[%clk 0:02:57]}  Nd7 {[%clk 0:03:03]} 13. Bxg7 {[%clk 0:02:57]}  Kxg7 {[%clk 0:03:03]} 14. Rad1 {[%clk 0:02:56]}  a5 {[%clk 0:02:48]} 15. Bg4 {[%clk 0:02:55]}  Ne5 {[%clk 0:02:44]} 16. c5 {[%clk 0:02:55]}  Nxg4 {[%clk 0:02:38]} 17. hxg4 {[%clk 0:02:56]}  Qc8 {[%clk 0:02:38]} 18. cxd6 {[%clk 0:02:56]}  Qxg4 {[%clk 0:02:38]} 19. dxe7 {[%clk 0:02:42]}  Rfe8 {[%clk 0:02:38]} 20. Nd5 {[%clk 0:02:40]}  Bxd5 {[%clk 0:02:38]} 21. Qc3+ {[%clk 0:02:33]}  Kg8 {[%clk 0:02:34]} 22. exd5 {[%clk 0:02:34]}  Rxe7 {[%clk 0:02:34]} 23. d6 {[%clk 0:02:34]}  Rd7 {[%clk 0:02:34]} 24. Rd5 {[%clk 0:02:17]}  Rad8 {[%clk 0:02:25]} 25. Rfd1 {[%clk 0:02:15]}  h5 {[%clk 0:02:14]} 26. Qxa5 {[%clk 0:02:11]}  h4 {[%clk 0:02:09]} 27. R1d4 {[%clk 0:02:09]}  Qe2 {[%clk 0:01:59]} 28. Rxh4 {[%clk 0:01:52]}  Qxb2 {[%clk 0:01:43]} 29. Rd1 {[%clk 0:01:06]}  Qf6 {[%clk 0:01:36]} 30. Rhd4 {[%clk 0:00:41]}  Rxd6 {[%clk 0:01:33]} 31. Rxd6 {[%clk 0:00:34]}  Rxd6 {[%clk 0:01:31]} 32. Qa8+ {[%clk 0:00:31]}  Kg7 {[%clk 0:01:30]} 33. Rxd6 {[%clk 0:00:32]}  Qxd6 {[%clk 0:01:31]} 34. Qxb7 {[%clk 0:00:33]}  Qd1+ {[%clk 0:01:29]} 35. Kh2 {[%clk 0:00:33]}  Qh5+ {[%clk 0:01:26]} 36. Kg1 {[%clk 0:00:34]}  Qd1+ {[%clk 0:01:26]} 37. Kh2 {[%clk 0:00:34]}  Qh5+ {[%clk 0:01:27]} 38. Kg3 {[%clk 0:00:35]}  Qg5+ {[%clk 0:01:19]} 39. Kf3 {[%clk 0:00:35]}  Qf5+ {[%clk 0:01:18]} 40. Ke3 {[%clk 0:00:32]}  Qe6+ {[%clk 0:01:17]} 41. Qe4 {[%clk 0:00:31]}  Qxa2 {[%clk 0:01:16]} 42. Qe5+ {[%clk 0:00:31]} 1/2-1/2


[Site "https://www.chess.com"]

[Event "Titled Tuesday Blitz April 12 Early 2022"]
[White "Sailer, Mike"]
[Black "Csonka, Balazs"]
[WhiteFideId "2012901"]
[BlackFideId "742910"]
[WhiteElo "2109"]
[BlackElo "2404"]
[Result "1-0"]
[Round "02"]
[TimeControl "180+1"]
[Date "2022.04.13"]
[WhiteClock "0:00:07"]
[BlackClock "0:00:01"]

1. d4 {[%clk 0:02:59]}  Nf6 {[%clk 0:02:58]} 2. Nf3 {[%clk 0:02:58]}  g6 {[%clk 0:02:58]} 3. Bf4 {[%clk 0:02:56]}  Bg7 {[%clk 0:02:57]} 4. e3 {[%clk 0:02:53]}  O-O {[%clk 0:02:56]} 5. Be2 {[%clk 0:02:52]}  c5 {[%clk 0:02:56]} 6. O-O {[%clk 0:02:50]}  Qb6 {[%clk 0:02:46]} 7. b3 {[%clk 0:02:45]}  Nc6 {[%clk 0:02:34]} 8. c3 {[%clk 0:02:37]}  d5 {[%clk 0:02:16]} 9. h3 {[%clk 0:02:34]}  Ne4 {[%clk 0:02:15]} 10. Nfd2 {[%clk 0:02:28]}  e5 {[%clk 0:02:07]} 11. Nxe4 {[%clk 0:02:11]}  dxe4 {[%clk 0:01:38]} 12. dxe5 {[%clk 0:01:47]}  Nxe5 {[%clk 0:01:37]} 13. Nd2 {[%clk 0:01:38]}  Qc6 {[%clk 0:01:13]} 14. Qc2 {[%clk 0:01:27]}  f5 {[%clk 0:00:44]} 15. Nc4 {[%clk 0:01:17]}  Nxc4 {[%clk 0:00:32]} 16. Bxc4+ {[%clk 0:01:16]}  Be6 {[%clk 0:00:33]} 17. Bxe6+ {[%clk 0:01:14]}  Qxe6 {[%clk 0:00:34]} 18. Rad1 {[%clk 0:01:11]}  Rad8 {[%clk 0:00:32]} 19. c4 {[%clk 0:01:07]}  h6 {[%clk 0:00:21]} 20. Rd2 {[%clk 0:00:56]}  g5 {[%clk 0:00:21]} 21. Bh2 {[%clk 0:00:50]}  Kf7 {[%clk 0:00:07]} 22. Rfd1 {[%clk 0:00:49]}  Rxd2 {[%clk 0:00:01]} 23. Qxd2 {[%clk 0:00:49]}  Re8 {[%clk 0:00:02]} 24. Qa5 {[%clk 0:00:44]}  a6 {[%clk 0:00:01]} 25. Qxc5 {[%clk 0:00:43]}  f4 {[%clk 0:00:01]} 26. Rd6 {[%clk 0:00:36]}  Qe7 {[%clk 0:00:01]} 27. exf4 {[%clk 0:00:29]}  e3 {[%clk 0:00:01]} 28. fxe3 {[%clk 0:00:25]}  Qxe3+ {[%clk 0:00:02]} 29. Qxe3 {[%clk 0:00:25]}  Rxe3 {[%clk 0:00:03]} 30. fxg5 {[%clk 0:00:25]}  hxg5 {[%clk 0:00:04]} 31. Rd7+ {[%clk 0:00:22]}  Kg6 {[%clk 0:00:03]} 32. Kf2 {[%clk 0:00:18]}  Rc3 {[%clk 0:00:03]} 33. Rxb7 {[%clk 0:00:16]}  Bd4+ {[%clk 0:00:02]} 34. Kf1 {[%clk 0:00:14]}  Rc2 {[%clk 0:00:02]} 35. Bg3 {[%clk 0:00:12]}  Rxa2 {[%clk 0:00:02]} 36. Rd7 {[%clk 0:00:10]}  Bc5 {[%clk 0:00:02]} 37. Rc7 {[%clk 0:00:08]}  Bd4 {[%clk 0:00:02]} 38. Rc6+ {[%clk 0:00:08]}  Kf5 {[%clk 0:00:02]} 39. Rd6 {[%clk 0:00:08]}  Ke4 {[%clk 0:00:01]} 40. Rd5 {[%clk 0:00:07]} 1-0


[Site "https://www.chess.com"]

[Event "Titled Tuesday Blitz April 12 Early 2022"]
[White "Samaganova, Aleksandra"]
[Black "O`Gorman, Tom"]
[WhiteFideId "13800221"]
[BlackFideId "2508249"]
[WhiteElo "1859"]
[BlackElo "2247"]
[Result "1-0"]
[Round "02"]
[TimeControl "180+1"]
[Date "2022.04.13"]
[WhiteClock "0:00:05"]
[BlackClock "0:00:16"]

1. c4 {[%clk 0:03:00]}  e5 {[%clk 0:02:58]} 2. Nc3 {[%clk 0:03:00]}  Bb4 {[%clk 0:02:57]} 3. Qc2 {[%clk 0:02:53]}  Nc6 {[%clk 0:02:57]} 4. e3 {[%clk 0:02:53]}  Nf6 {[%clk 0:02:55]} 5. Nf3 {[%clk 0:02:50]}  O-O {[%clk 0:02:49]} 6. Be2 {[%clk 0:02:46]}  Bxc3 {[%clk 0:02:45]} 7. bxc3 {[%clk 0:02:40]}  d6 {[%clk 0:02:44]} 8. d4 {[%clk 0:02:37]}  b6 {[%clk 0:02:42]} 9. O-O {[%clk 0:02:34]}  Qe7 {[%clk 0:02:41]} 10. Rb1 {[%clk 0:02:29]}  Rd8 {[%clk 0:02:37]} 11. Ba3 {[%clk 0:02:19]}  Na5 {[%clk 0:02:26]} 12. Nxe5 {[%clk 0:01:26]}  c5 {[%clk 0:02:21]} 13. Nf3 {[%clk 0:01:23]}  Ba6 {[%clk 0:02:11]} 14. Nd2 {[%clk 0:01:17]}  Rac8 {[%clk 0:02:10]} 15. Qa4 {[%clk 0:01:06]}  Ne4 {[%clk 0:02:01]} 16. Nxe4 {[%clk 0:00:48]}  Qxe4 {[%clk 0:02:02]} 17. Rfc1 {[%clk 0:00:49]}  Qe6 {[%clk 0:01:54]} 18. h3 {[%clk 0:00:37]}  Bxc4 {[%clk 0:01:52]} 19. Bxc4 {[%clk 0:00:24]}  Qxc4 {[%clk 0:01:53]} 20. Qxc4 {[%clk 0:00:23]}  Nxc4 {[%clk 0:01:53]} 21. Bb2 {[%clk 0:00:19]}  cxd4 {[%clk 0:01:25]} 22. cxd4 {[%clk 0:00:17]}  d5 {[%clk 0:01:26]} 23. Bc3 {[%clk 0:00:16]}  Rb8 {[%clk 0:01:22]} 24. Rb5 {[%clk 0:00:16]}  a6 {[%clk 0:01:21]} 25. Rb4 {[%clk 0:00:14]}  b5 {[%clk 0:01:20]} 26. Rcb1 {[%clk 0:00:14]}  Nb6 {[%clk 0:01:14]} 27. Kf1 {[%clk 0:00:12]}  Rdc8 {[%clk 0:01:14]} 28. Bd2 {[%clk 0:00:12]}  Rc4 {[%clk 0:01:09]} 29. Ke2 {[%clk 0:00:08]}  Rxb4 {[%clk 0:01:10]} 30. Bxb4 {[%clk 0:00:07]}  Nc4 {[%clk 0:01:10]} 31. Kd3 {[%clk 0:00:06]}  f6 {[%clk 0:01:10]} 32. f3 {[%clk 0:00:06]}  Kf7 {[%clk 0:01:11]} 33. e4 {[%clk 0:00:06]}  Ke6 {[%clk 0:01:11]} 34. Re1 {[%clk 0:00:06]}  a5 {[%clk 0:01:04]} 35. Bc5 {[%clk 0:00:06]}  Rb7 {[%clk 0:01:02]} 36. exd5+ {[%clk 0:00:06]}  Kxd5 {[%clk 0:01:03]} 37. Re8 {[%clk 0:00:05]}  Rd7 {[%clk 0:00:56]} 38. Rb8 {[%clk 0:00:04]}  b4 {[%clk 0:00:56]} 39. Ra8 {[%clk 0:00:04]}  h5 {[%clk 0:00:49]} 40. Rh8 {[%clk 0:00:02]}  Nb2+ {[%clk 0:00:42]} 41. Kc2 {[%clk 0:00:02]}  Na4 {[%clk 0:00:43]} 42. Rxh5+ {[%clk 0:00:01]}  Kc4 {[%clk 0:00:43]} 43. Rh4 {[%clk 0:00:01]}  Nxc5 {[%clk 0:00:42]} 44. dxc5+ {[%clk 0:00:01]}  Kxc5 {[%clk 0:00:43]} 45. Rh5+ {[%clk 0:00:01]}  Rd5 {[%clk 0:00:41]} 46. Rh7 {[%clk 0:00:02]}  Rg5 {[%clk 0:00:41]} 47. g4 {[%clk 0:00:01]}  a4 {[%clk 0:00:41]} 48. h4 {[%clk 0:00:01]}  Re5 {[%clk 0:00:40]} 49. Rxg7 {[%clk 0:00:01]}  Re2+ {[%clk 0:00:40]} 50. Kb1 {[%clk 0:00:01]}  a3 {[%clk 0:00:37]} 51. Rc7+ {[%clk 0:00:02]}  Kb6 {[%clk 0:00:34]} 52. Rc8 {[%clk 0:00:02]}  Rb2+ {[%clk 0:00:34]} 53. Ka1 {[%clk 0:00:02]}  Rf2 {[%clk 0:00:34]} 54. Kb1 {[%clk 0:00:02]}  Rxf3 {[%clk 0:00:34]} 55. g5 {[%clk 0:00:03]}  fxg5 {[%clk 0:00:34]} 56. hxg5 {[%clk 0:00:04]}  Rg3 {[%clk 0:00:34]} 57. Rg8 {[%clk 0:00:04]}  Rg2 {[%clk 0:00:25]} 58. g6 {[%clk 0:00:03]}  Kb7 {[%clk 0:00:23]} 59. Rg7+ {[%clk 0:00:03]}  Kc6 {[%clk 0:00:22]} 60. Rg8 {[%clk 0:00:03]}  Kd6 {[%clk 0:00:20]} 61. Rb8 {[%clk 0:00:02]}  Rb2+ {[%clk 0:00:17]} 62. Ka1 {[%clk 0:00:02]}  Rg2 {[%clk 0:00:16]} 63. Kb1 {[%clk 0:00:02]}  Rxg6 {[%clk 0:00:14]} 64. Rb6+ {[%clk 0:00:02]}  Kc5 {[%clk 0:00:14]} 65. Rxg6 {[%clk 0:00:03]}  Kc4 {[%clk 0:00:14]} 66. Rg3 {[%clk 0:00:03]}  Kb5 {[%clk 0:00:15]} 67. Kc2 {[%clk 0:00:04]}  Ka4 {[%clk 0:00:15]} 68. Rg4 {[%clk 0:00:04]}  Kb5 {[%clk 0:00:16]} 69. Kb3 {[%clk 0:00:05]} 1-0


[Site "https://www.chess.com"]

[Event "Titled Tuesday Blitz April 12 Early 2022"]
[White "Sanchez, Robert"]
[Black "Barp, Alberto"]
[WhiteFideId "2034360"]
[BlackFideId "872555"]
[WhiteElo "2365"]
[BlackElo "2229"]
[Result "0-1"]
[Round "02"]
[TimeControl "180+1"]
[Date "2022.04.13"]
[WhiteClock "0:01:41"]
[BlackClock "0:01:35"]

1. e4 {[%clk 0:03:00]}  c6 {[%clk 0:03:00]} 2. d4 {[%clk 0:03:00]}  d5 {[%clk 0:03:01]} 3. e5 {[%clk 0:03:01]}  Bf5 {[%clk 0:03:00]} 4. Nf3 {[%clk 0:03:01]}  e6 {[%clk 0:02:53]} 5. Be2 {[%clk 0:03:02]}  Ne7 {[%clk 0:02:41]} 6. Nbd2 {[%clk 0:02:49]}  Nd7 {[%clk 0:02:40]} 7. Nb3 {[%clk 0:02:49]}  h6 {[%clk 0:02:40]} 8. O-O {[%clk 0:02:49]}  Bh7 {[%clk 0:02:40]} 9. a4 {[%clk 0:02:49]}  Nc8 {[%clk 0:02:36]} 10. a5 {[%clk 0:02:49]}  a6 {[%clk 0:02:36]} 11. c4 {[%clk 0:02:47]}  Na7 {[%clk 0:02:32]} 12. cxd5 {[%clk 0:02:30]}  cxd5 {[%clk 0:02:33]} 13. Bd2 {[%clk 0:02:30]}  Be7 {[%clk 0:02:29]} 14. Rc1 {[%clk 0:02:30]}  O-O {[%clk 0:02:29]} 15. Ne1 {[%clk 0:02:28]}  Nc6 {[%clk 0:02:26]} 16. Nd3 {[%clk 0:02:20]}  Rc8 {[%clk 0:02:21]} 17. Ndc5 {[%clk 0:02:19]}  Nxc5 {[%clk 0:02:20]} 18. Nxc5 {[%clk 0:02:19]}  Nxd4 {[%clk 0:02:04]} 19. Be3 {[%clk 0:02:11]}  Nxe2+ {[%clk 0:01:57]} 20. Qxe2 {[%clk 0:02:11]}  d4 {[%clk 0:01:58]} 21. Nxb7 {[%clk 0:02:11]}  Qd5 {[%clk 0:01:54]} 22. Rcd1 {[%clk 0:02:05]}  d3 {[%clk 0:01:48]} 23. Qg4 {[%clk 0:02:04]}  Qxb7 {[%clk 0:01:44]} 24. Bxh6 {[%clk 0:01:58]}  Bg6 {[%clk 0:01:44]} 25. Bf4 {[%clk 0:01:57]}  Qxb2 {[%clk 0:01:42]} 26. h4 {[%clk 0:01:58]}  Qd4 {[%clk 0:01:39]} 27. g3 {[%clk 0:01:50]}  Qe4 {[%clk 0:01:35]} 28. h5 {[%clk 0:01:46]}  Bf5 {[%clk 0:01:35]} 29. f3 {[%clk 0:01:41]}  Bxg4 {[%clk 0:01:34]} 30. fxe4 {[%clk 0:01:41]}  Bxd1 {[%clk 0:01:35]} 0-1


[Site "https://www.chess.com"]

[Event "Titled Tuesday Blitz April 12 Early 2022"]
[White "Secheres, Adrian-Simion"]
[Black "Kaminski, Victor"]
[WhiteFideId "1217445"]
[BlackFideId "1131630"]
[WhiteElo "2277"]
[BlackElo "2181"]
[Result "1-0"]
[Round "02"]
[TimeControl "180+1"]
[Date "2022.04.13"]
[WhiteClock "0:00:47"]
[BlackClock "0:00:06"]

1. d4 {[%clk 0:03:00]}  Nf6 {[%clk 0:02:59]} 2. c4 {[%clk 0:03:01]}  c5 {[%clk 0:03:00]} 3. d5 {[%clk 0:03:01]}  b5 {[%clk 0:03:00]} 4. cxb5 {[%clk 0:03:02]}  a6 {[%clk 0:03:01]} 5. e3 {[%clk 0:03:02]}  e6 {[%clk 0:02:59]} 6. Nc3 {[%clk 0:03:00]}  axb5 {[%clk 0:02:55]} 7. Bxb5 {[%clk 0:02:59]}  Bb7 {[%clk 0:02:55]} 8. dxe6 {[%clk 0:02:57]}  Bxg2 {[%clk 0:02:51]} 9. exf7+ {[%clk 0:02:56]}  Kxf7 {[%clk 0:02:47]} 10. Nf3 {[%clk 0:02:34]}  Bxh1 {[%clk 0:02:44]} 11. Bc4+ {[%clk 0:02:33]}  Ke8 {[%clk 0:02:37]} 12. Ng5 {[%clk 0:02:10]}  d5 {[%clk 0:02:05]} 13. Bb5+ {[%clk 0:01:59]}  Nbd7 {[%clk 0:02:00]} 14. Ke2 {[%clk 0:01:52]}  Be4 {[%clk 0:01:43]} 15. Ncxe4 {[%clk 0:01:37]}  dxe4 {[%clk 0:01:39]} 16. b3 {[%clk 0:01:30]}  Qb6 {[%clk 0:01:23]} 17. a4 {[%clk 0:01:27]}  Rd8 {[%clk 0:01:18]} 18. Bb2 {[%clk 0:01:21]}  Be7 {[%clk 0:01:06]} 19. Qc2 {[%clk 0:01:13]}  Qb7 {[%clk 0:00:31]} 20. Rd1 {[%clk 0:01:08]}  h6 {[%clk 0:00:28]} 21. Ne6 {[%clk 0:01:07]}  Rc8 {[%clk 0:00:11]} 22. Nxg7+ {[%clk 0:00:54]}  Kf7 {[%clk 0:00:11]} 23. Nf5 {[%clk 0:00:53]}  Rcd8 {[%clk 0:00:08]} 24. Qc4+ {[%clk 0:00:53]}  Kf8 {[%clk 0:00:07]} 25. Qe6 {[%clk 0:00:51]}  Qb6 {[%clk 0:00:06]} 26. Qxe7+ {[%clk 0:00:47]} 1-0


[Site "https://www.chess.com"]

[Event "Titled Tuesday Blitz April 12 Early 2022"]
[White "Seo, Jung Min"]
[Black "Andreikin, Dmitry"]
[WhiteFideId "1734687"]
[BlackFideId "4158814"]
[WhiteElo "2401"]
[BlackElo "2736"]
[Result "1/2-1/2"]
[Round "02"]
[TimeControl "180+1"]
[Date "2022.04.12"]
[WhiteClock "0:00:25"]
[BlackClock "0:01:43"]

1. d4 {[%clk 0:03:00]}  d5 {[%clk 0:02:59]} 2. c4 {[%clk 0:03:00]}  e6 {[%clk 0:02:59]} 3. Nf3 {[%clk 0:03:01]}  a6 {[%clk 0:02:59]} 4. cxd5 {[%clk 0:03:01]}  exd5 {[%clk 0:02:59]} 5. Nc3 {[%clk 0:03:01]}  Nc6 {[%clk 0:02:55]} 6. Bf4 {[%clk 0:03:01]}  Be6 {[%clk 0:02:55]} 7. e3 {[%clk 0:03:01]}  h6 {[%clk 0:02:49]} 8. h3 {[%clk 0:03:00]}  Nf6 {[%clk 0:02:47]} 9. Bd3 {[%clk 0:02:58]}  Bd6 {[%clk 0:02:48]} 10. Bxd6 {[%clk 0:02:57]}  Qxd6 {[%clk 0:02:48]} 11. Rc1 {[%clk 0:02:56]}  O-O {[%clk 0:02:47]} 12. O-O {[%clk 0:02:56]}  Ne7 {[%clk 0:02:48]} 13. Na4 {[%clk 0:02:54]}  Rad8 {[%clk 0:02:45]} 14. Nc5 {[%clk 0:02:53]}  Bc8 {[%clk 0:02:45]} 15. Qb3 {[%clk 0:02:52]}  b6 {[%clk 0:02:43]} 16. Nxa6 {[%clk 0:02:50]}  Bxa6 {[%clk 0:02:39]} 17. Bxa6 {[%clk 0:02:49]}  c5 {[%clk 0:02:39]} 18. dxc5 {[%clk 0:02:40]}  bxc5 {[%clk 0:02:40]} 19. Be2 {[%clk 0:02:40]}  Ra8 {[%clk 0:02:35]} 20. a3 {[%clk 0:02:36]}  Rfb8 {[%clk 0:02:35]} 21. Qc2 {[%clk 0:02:36]}  Qb6 {[%clk 0:02:34]} 22. Rb1 {[%clk 0:02:28]}  Ne4 {[%clk 0:02:33]} 23. Rfc1 {[%clk 0:02:25]}  Qf6 {[%clk 0:02:32]} 24. Bd3 {[%clk 0:02:22]}  Ng6 {[%clk 0:02:28]} 25. Bxe4 {[%clk 0:02:20]}  dxe4 {[%clk 0:02:29]} 26. Qxe4 {[%clk 0:02:20]}  Ra7 {[%clk 0:02:28]} 27. Rxc5 {[%clk 0:02:16]}  Rxb2 {[%clk 0:02:17]} 28. Rc8+ {[%clk 0:02:04]}  Nf8 {[%clk 0:02:11]} 29. Rxb2 {[%clk 0:01:54]}  Qxb2 {[%clk 0:02:11]} 30. Qb4 {[%clk 0:01:39]}  Qxb4 {[%clk 0:02:05]} 31. axb4 {[%clk 0:01:39]}  Rb7 {[%clk 0:02:05]} 32. Ne5 {[%clk 0:01:31]}  g5 {[%clk 0:02:01]} 33. Ng4 {[%clk 0:01:28]}  Kg7 {[%clk 0:01:55]} 34. Nxh6 {[%clk 0:01:22]}  Ne6 {[%clk 0:01:53]} 35. Nf5+ {[%clk 0:01:16]}  Kf6 {[%clk 0:01:53]} 36. Nd4 {[%clk 0:01:10]}  Nxd4 {[%clk 0:01:54]} 37. exd4 {[%clk 0:01:10]}  Rxb4 {[%clk 0:01:54]} 38. Rd8 {[%clk 0:01:08]}  Ke7 {[%clk 0:01:52]} 39. Rd5 {[%clk 0:01:07]}  f6 {[%clk 0:01:52]} 40. g4 {[%clk 0:00:31]}  Ke6 {[%clk 0:01:52]} 41. Rd8 {[%clk 0:00:31]}  Ke7 {[%clk 0:01:52]} 42. Rd5 {[%clk 0:00:31]}  Ke6 {[%clk 0:01:53]} 43. Rf5 {[%clk 0:00:30]}  Rxd4 {[%clk 0:01:52]} 44. Kg2 {[%clk 0:00:30]}  Kf7 {[%clk 0:01:47]} 45. Kg3 {[%clk 0:00:23]}  Kg6 {[%clk 0:01:47]} 46. h4 {[%clk 0:00:22]}  Rd3+ {[%clk 0:01:43]} 47. f3 {[%clk 0:00:23]}  gxh4+ {[%clk 0:01:43]} 48. Kxh4 {[%clk 0:00:23]}  Ra3 {[%clk 0:01:41]} 49. Kg3 {[%clk 0:00:24]}  Rb3 {[%clk 0:01:41]} 50. Kh4 {[%clk 0:00:24]}  Ra3 {[%clk 0:01:42]} 51. Kg3 {[%clk 0:00:24]}  Rb3 {[%clk 0:01:42]} 52. Kh4 {[%clk 0:00:25]}  Ra3 {[%clk 0:01:43]} 1/2-1/2


[Site "https://www.chess.com"]

[Event "Titled Tuesday Blitz April 12 Early 2022"]
[White "Shandrygin, Nikita"]
[Black "Ishbaev, Alibek"]
[WhiteFideId "24198668"]
[BlackFideId "14205017"]
[WhiteElo "2323"]
[BlackElo "2319"]
[Result "1-0"]
[Round "02"]
[TimeControl "180+1"]
[Date "2022.04.13"]
[WhiteClock "0:01:24"]
[BlackClock "0:00:39"]

1. Nf3 {[%clk 0:03:00]}  c5 {[%clk 0:02:10]} 2. g3 {[%clk 0:03:01]}  Nc6 {[%clk 0:02:10]} 3. d4 {[%clk 0:03:00]}  cxd4 {[%clk 0:02:09]} 4. Nxd4 {[%clk 0:03:00]}  e5 {[%clk 0:02:06]} 5. Nxc6 {[%clk 0:02:59]}  dxc6 {[%clk 0:02:07]} 6. Qxd8+ {[%clk 0:02:59]}  Kxd8 {[%clk 0:02:07]} 7. f3 {[%clk 0:03:00]}  Kc7 {[%clk 0:02:07]} 8. e4 {[%clk 0:02:58]}  Be6 {[%clk 0:02:05]} 9. Be3 {[%clk 0:02:56]}  Nf6 {[%clk 0:02:04]} 10. Nd2 {[%clk 0:02:56]}  b5 {[%clk 0:02:03]} 11. a4 {[%clk 0:02:54]}  b4 {[%clk 0:01:51]} 12. Bc4 {[%clk 0:02:51]}  Bxc4 {[%clk 0:01:48]} 13. Nxc4 {[%clk 0:02:51]}  Nd7 {[%clk 0:01:48]} 14. Ke2 {[%clk 0:02:48]}  f6 {[%clk 0:01:47]} 15. Rhd1 {[%clk 0:02:46]}  Be7 {[%clk 0:01:46]} 16. Rd3 {[%clk 0:02:26]}  Rhd8 {[%clk 0:01:44]} 17. Rad1 {[%clk 0:02:26]}  Nb6 {[%clk 0:01:43]} 18. Nxb6 {[%clk 0:02:10]}  axb6 {[%clk 0:01:40]} 19. Rxd8 {[%clk 0:02:11]}  Rxd8 {[%clk 0:01:38]} 20. Rxd8 {[%clk 0:02:11]}  Bxd8 {[%clk 0:01:39]} 21. Kd3 {[%clk 0:02:11]}  b5 {[%clk 0:01:33]} 22. axb5 {[%clk 0:02:09]}  cxb5 {[%clk 0:01:34]} 23. Bc5 {[%clk 0:02:10]}  Kc6 {[%clk 0:01:22]} 24. Bxb4 {[%clk 0:02:08]}  g6 {[%clk 0:01:22]} 25. g4 {[%clk 0:02:08]}  h5 {[%clk 0:01:15]} 26. h3 {[%clk 0:02:04]}  Kd7 {[%clk 0:00:59]} 27. c4 {[%clk 0:01:59]}  Kc6 {[%clk 0:00:58]} 28. b3 {[%clk 0:01:57]}  Kb6 {[%clk 0:00:56]} 29. Bf8 {[%clk 0:01:54]}  hxg4 {[%clk 0:00:52]} 30. hxg4 {[%clk 0:01:53]}  Kc6 {[%clk 0:00:50]} 31. Kc3 {[%clk 0:01:49]}  Ba5+ {[%clk 0:00:48]} 32. Bb4 {[%clk 0:01:49]}  Bd8 {[%clk 0:00:48]} 33. Kb2 {[%clk 0:01:46]}  Kb6 {[%clk 0:00:46]} 34. Ka3 {[%clk 0:01:35]}  Kc6 {[%clk 0:00:43]} 35. Bf8 {[%clk 0:01:35]}  Kb6 {[%clk 0:00:43]} 36. Kb4 {[%clk 0:01:34]}  bxc4 {[%clk 0:00:43]} 37. Kxc4 {[%clk 0:01:29]}  Kc6 {[%clk 0:00:39]} 38. b4 {[%clk 0:01:25]}  Kb6 {[%clk 0:00:39]} 39. b5 {[%clk 0:01:24]} 1-0


[Site "https://www.chess.com"]

[Event "Titled Tuesday Blitz April 12 Early 2022"]
[White "Silva, Kaua Marques"]
[Black "Wesolowska, Hanna"]
[WhiteFideId "22701168"]
[BlackFideId "1104683"]
[WhiteElo "2071"]
[BlackElo "2308"]
[Result "1-0"]
[Round "02"]
[TimeControl "180+1"]
[Date "2022.04.13"]
[WhiteClock "0:00:30"]
[BlackClock "0:00:03"]

1. e4 {[%clk 0:02:59]}  c5 {[%clk 0:02:54]} 2. Nf3 {[%clk 0:02:57]}  d6 {[%clk 0:02:51]} 3. d4 {[%clk 0:02:56]}  cxd4 {[%clk 0:02:52]} 4. Nxd4 {[%clk 0:02:57]}  a6 {[%clk 0:02:52]} 5. c4 {[%clk 0:02:57]}  e6 {[%clk 0:02:52]} 6. Nc3 {[%clk 0:02:57]}  Nf6 {[%clk 0:02:53]} 7. Be2 {[%clk 0:02:56]}  Be7 {[%clk 0:02:52]} 8. O-O {[%clk 0:02:54]}  O-O {[%clk 0:02:50]} 9. Be3 {[%clk 0:02:54]}  Qc7 {[%clk 0:02:50]} 10. Rc1 {[%clk 0:02:54]}  Nc6 {[%clk 0:02:49]} 11. Kh1 {[%clk 0:02:54]}  Bd7 {[%clk 0:02:49]} 12. Nc2 {[%clk 0:02:53]}  Rac8 {[%clk 0:02:44]} 13. b3 {[%clk 0:02:53]}  Rfd8 {[%clk 0:02:41]} 14. f4 {[%clk 0:02:50]}  Qb8 {[%clk 0:02:39]} 15. Bf3 {[%clk 0:02:49]}  b5 {[%clk 0:02:32]} 16. cxb5 {[%clk 0:02:37]}  axb5 {[%clk 0:02:30]} 17. Qe2 {[%clk 0:02:34]}  b4 {[%clk 0:02:26]} 18. Na4 {[%clk 0:02:27]}  Na7 {[%clk 0:02:04]} 19. Nb6 {[%clk 0:02:19]}  Rc3 {[%clk 0:01:37]} 20. Nxd7 {[%clk 0:01:55]}  Nxd7 {[%clk 0:01:34]} 21. Bd2 {[%clk 0:01:55]}  Rdc8 {[%clk 0:01:28]} 22. Bxc3 {[%clk 0:01:51]}  bxc3 {[%clk 0:01:24]} 23. Ne3 {[%clk 0:01:45]}  Nb5 {[%clk 0:01:23]} 24. Rfd1 {[%clk 0:01:43]}  Bf6 {[%clk 0:00:59]} 25. g3 {[%clk 0:01:31]}  c2 {[%clk 0:00:56]} 26. Rd2 {[%clk 0:01:29]}  Nc3 {[%clk 0:00:55]} 27. Rdxc2 {[%clk 0:01:27]}  Rc5 {[%clk 0:00:44]} 28. Qd2 {[%clk 0:01:24]}  Qc7 {[%clk 0:00:20]} 29. Nc4 {[%clk 0:01:13]}  Nb5 {[%clk 0:00:18]} 30. Qf2 {[%clk 0:01:03]}  Nd4 {[%clk 0:00:16]} 31. Rd2 {[%clk 0:00:56]}  Nxf3 {[%clk 0:00:16]} 32. Qxf3 {[%clk 0:00:57]}  d5 {[%clk 0:00:17]} 33. exd5 {[%clk 0:00:53]}  exd5 {[%clk 0:00:16]} 34. Rxd5 {[%clk 0:00:52]}  h6 {[%clk 0:00:15]} 35. Rcd1 {[%clk 0:00:50]}  Nf8 {[%clk 0:00:15]} 36. Rxc5 {[%clk 0:00:49]}  Qxc5 {[%clk 0:00:16]} 37. Qd5 {[%clk 0:00:50]}  Qf2 {[%clk 0:00:15]} 38. Qd2 {[%clk 0:00:51]}  Qf3+ {[%clk 0:00:15]} 39. Kg1 {[%clk 0:00:48]}  Ne6 {[%clk 0:00:13]} 40. Ne5 {[%clk 0:00:45]}  Qe4 {[%clk 0:00:11]} 41. Qd3 {[%clk 0:00:43]}  Qb4 {[%clk 0:00:07]} 42. Nf3 {[%clk 0:00:35]}  Qb6+ {[%clk 0:00:06]} 43. Kg2 {[%clk 0:00:35]}  h5 {[%clk 0:00:05]} 44. h4 {[%clk 0:00:36]}  Qb7 {[%clk 0:00:03]} 45. Re1 {[%clk 0:00:30]}  Nc5 {[%clk 0:00:03]} 46. Qe3 {[%clk 0:00:30]}  Ne6 {[%clk 0:00:03]} 47. Qe4 {[%clk 0:00:30]}  Qb4 {[%clk 0:00:03]} 48. Qxb4 {[%clk 0:00:30]} 1-0


[Site "https://www.chess.com"]